[Event "Czech Open GM 2020"]
[Site "Pardubice"]
[Date "2020.09.26"]
[Round "7.9"]
[White "Sernecki, Franciszek"]
[Black "Parvanyan, Ashot"]
[Result "1/2-1/2"]
[ECO "E92"]
[WhiteElo "2248"]
[BlackElo "2458"]
[Annotator "ChessBase"]
[PlyCount "136"]
[EventDate "2020.09.21"]
[EventCountry "CZE"]
[SourceTitle "playchess.com"]
[Source "ChessBase"]
[SourceQuality "1"]
[TimeControl "40/5400+30:1800+30"]

1. d4 {[%emt 0:00:00]} Nf6 {[%emt 0:00:40]} 2. c4 {[%emt 0:00:00]} c5 {[%emt 0:00:34]} 3. d5 {[%emt 0:00:00]} g6 {[%emt 0:00:18]} 4. Nc3 {[%emt 0:00:27]} Bg7 {[%emt 0:00:06]} 5. e4 {[%emt 0:00:46]} d6 {[%emt 0:00:06]} 6. Nf3 {[%emt 0:00:29]} O-O {[%emt 0:00:29]} 7. Be2 {[%emt 0:00:06]} e5 {[%emt 0:00:36]} 8. O-O {[%emt 0:04:34]} Nbd7 {[%emt 0:03:06]} 9. Ne1 {[%emt 0:08:01]} Ne8 {[%emt 0:00:32]} 10. g4 {[%emt 0:09:26]} a6 {[%emt 0:03:32]} 11. Be3 {[%emt 0:03:08]} f5 {[%emt 0:03:36]} 12. gxf5 {[%emt 0:02:15]} gxf5 {[%emt 0:00:12]} 13. exf5 {[%emt 0:00:59]} Ndf6 {[%emt 0:01:55]} 14. Kh1 {[%emt 0:06:27]} Bxf5 {[%emt 0:01:02]} 15. Rg1 {[%emt 0:02:42]} Kh8 {[%emt 0:02:16]} 16. Ng2 {[%emt 0:01:46]} Ne4 {[%emt 0:07:46]} 17. Nxe4 {[%emt 0:04:13]} Bxe4 {[%emt 0:00:04]} 18. f3 {[%emt 0:00:38]} Bf5 {[%emt 0:05:14]} 19. Qd2 {[%emt 0:01:37]} Bf6 {[%emt 0:21:38]} 20. Bd3 {[%emt 0:03:21]} Bxd3 {[%emt 0:07:48]} 21. Qxd3 {[%emt 0:00:30]} Bg5 {[%emt 0:00:31]} 22. Raf1 {[%emt 0:06:07]} Bxe3 {[%emt 0:02:19]} 23. Qxe3 {[%emt 0:01:54]} Ng7 {[%emt 0:04:10]} 24. f4 {[%emt 0:03:51]} Qf6 {[%emt 0:00:19]} 25. Qe2 {[%emt 0:10:59]} Nf5 {[%emt 0:05:09]} 26. fxe5 {[%emt 0:08:01]} Qxe5 {[%emt 0:09:21]} 27. Qxe5+ {[%emt 0:02:06]} dxe5 {[%emt 0:00:05]} 28. Re1 {[%emt 0:00:20]} Rae8 {[%emt 0:00:53]} 29. Ne3 {[%emt 0:01:40]} Nd6 {[%emt 0:00:53]} 30. Ref1 {[%emt 0:05:43]} Rf4 {[%emt 0:02:40]} 31. b3 {[%emt 0:01:48]} Ne4 {[%emt 0:05:38]} 32. h3 {[%emt 0:05:59]} Ref8 {[%emt 0:02:58]} 33. Rxf4 {[%emt 0:02:19]} exf4 {[%emt 0:00:19]} 34. Nd1 {[%emt 0:00:38]} f3 {[%emt 0:06:36]} 35. Kh2 {[%emt 0:01:13]} b5 {[%emt 0:00:19]} 36. Re1 {[%emt 0:02:50]} Rf4 {[%emt 0:00:28]} 37. Kg1 {[%emt 0:00:57]} bxc4 {[%emt 0:03:33]} 38. bxc4 {[%emt 0:00:30]} Kg7 {[%emt 0:00:46]} 39. Nf2 {[%emt 0:00:29]} Nd6 {[%emt 0:00:30]} 40. Re7+ {[%emt 0:00:31]} Kg8 {[%emt 0:00:30]} 41. Re6 {[%emt 0:06:30]} Nxc4 {[%emt 0:03:03]} 42. Re4 {[%emt 0:00:28]} Rxe4 {[%emt 0:01:34]} 43. Nxe4 {[%emt 0:00:05]} Kf7 {[%emt 0:20:23]} 44. Kf2 {[%emt 0:02:26]} a5 {[%emt 0:02:56]} 45. Nxc5 {[%emt 0:02:26]} Kf6 {[%emt 0:00:20]} 46. Kxf3 {[%emt 0:03:04]} Ke5 {[%emt 0:00:10]} 47. Nd7+ {[%emt 0:01:21]} Kxd5 {[%emt 0:00:13]} 48. Nf6+ {[%emt 0:00:30]} Ke5 {[%emt 0:00:15]} 49. Nxh7 {[%emt 0:00:24]} Kf5 {[%emt 0:00:21]} 50. Nf8 {[%emt 0:02:07]} Nb6 {[%emt 0:01:31]} 51. Ke3 {[%emt 0:01:46]} Kf6 {[%emt 0:02:14]} 52. h4 {[%emt 0:01:25]} Kf7 {[%emt 0:02:53]} 53. Nh7 {[%emt 0:00:05]} Kg6 {[%emt 0:00:23]} 54. Ng5 {[%emt 0:00:03]} Kh5 {[%emt 0:00:05]} 55. Kd4 {[%emt 0:02:30]} Kxh4 {[%emt 0:00:16]} 56. Ne4 {[%emt 0:00:07]} Kg4 {[%emt 0:00:46]} 57. Kc5 {[%emt 0:00:06]} Na4+ {[%emt 0:01:04]} 58. Kb5 {[%emt 0:00:42]} Nb2 {[%emt 0:00:05]} 59. Kxa5 {[%emt 0:01:01]} Kf4 {[%emt 0:00:20]} 60. Nc5 {[%emt 0:00:43]} Ke5 {[%emt 0:00:27]} 61. Kb4 {[%emt 0:01:15]} Kd5 {[%emt 0:00:41]} 62. Nb3 {[%emt 0:00:57]} Kc6 {[%emt 0:00:42]} 63. Nc5 {[%emt 0:01:02]} Nd1 {[%emt 0:00:47]} 64. a4 {[%emt 0:00:27]} Ne3 {[%emt 0:00:12]} 65. Ne4 {[%emt 0:00:48]} Nd5+ {[%emt 0:00:13]} 66. Kb3 {[%emt 0:00:12]} Nb6 {[%emt 0:00:10]} 67. a5 {[%emt 0:00:04]} Kb5 {[%emt 0:00:05]} 68. axb6 {[%emt 0:00:02]} Kxb6 {[%emt 0:00:04]} 1/2-1/2

[Event "Czech Open GM 2020"]
[Site "Pardubice"]
[Date "2020.09.26"]
[Round "7.10"]
[White "Vokac, Marek"]
[Black "Peycheva, Gergana"]
[Result "1-0"]
[ECO "A06"]
[WhiteElo "2365"]
[BlackElo "2270"]
[Annotator "ChessBase"]
[PlyCount "125"]
[EventDate "2020.09.21"]
[EventCountry "CZE"]
[SourceTitle "playchess.com"]
[Source "ChessBase"]
[SourceQuality "1"]
[TimeControl "40/5400+30:1800+30"]

1. Nf3 {[%emt 0:00:00]} d5 {[%emt 0:00:00]} 2. b3 {[%emt 0:00:05]} Nf6 {[%emt 0:00:11]} 3. Bb2 {[%emt 0:00:05]} Bf5 {[%emt 0:00:45]} 4. e3 {[%emt 0:00:59]} e6 {[%emt 0:00:37]} 5. Be2 {[%emt 0:01:12]} h6 {[%emt 0:00:33]} 6. d3 {[%emt 0:01:03]} Nbd7 {[%emt 0:01:21]} 7. Nbd2 {[%emt 0:00:12]} c6 {[%emt 0:01:24]} 8. h3 {[%emt 0:07:21]} Be7 {[%emt 0:03:58]} 9. g4 {[%emt 0:00:00]} Bh7 {[%emt 0:06:01]} 10. Rg1 {[%emt 0:00:00]} Qc7 {[%emt 0:06:56]} 11. h4 {[%emt 0:05:33]} Bg6 {[%emt 0:11:05]} 12. h5 {[%emt 0:18:16]} Bh7 {[%emt 0:01:48]} 13. g5 {[%emt 0:00:02]} hxg5 {[%emt 0:00:22]} 14. Nxg5 {[%emt 0:00:03]} Bg8 {[%emt 0:01:56]} 15. Nf1 {[%emt 0:19:03]} O-O-O {[%emt 0:03:55]} 16. f4 {[%emt 0:03:24]} Ne8 {[%emt 0:03:26]} 17. Qd2 {[%emt 0:04:43]} Bf6 {[%emt 0:02:00]} 18. O-O-O {[%emt 0:01:20]} Bxb2+ {[%emt 0:04:36]} 19. Kxb2 {[%emt 0:01:11]} f6 {[%emt 0:02:27]} 20. Nh3 {[%emt 0:00:36]} g6 {[%emt 0:03:33]} 21. Rxg6 {[%emt 0:05:30]} Bf7 {[%emt 0:00:07]} 22. Rg2 {[%emt 0:02:33]} Bxh5 {[%emt 0:00:25]} 23. Bxh5 {[%emt 0:00:10]} Rxh5 {[%emt 0:00:06]} 24. Nf2 {[%emt 0:00:08]} Nd6 {[%emt 0:03:20]} 25. Ng3 {[%emt 0:00:26]} Rh7 {[%emt 0:01:16]} 26. Ne2 {[%emt 0:00:08]} c5 {[%emt 0:04:12]} 27. Rdg1 {[%emt 0:01:51]} Kb8 {[%emt 0:02:02]} 28. Rg7 {[%emt 0:01:19]} Rxg7 {[%emt 0:01:29]} 29. Rxg7 {[%emt 0:00:02]} Qb6 {[%emt 0:01:50]} 30. Kb1 {[%emt 0:12:05]} Nf5 {[%emt 0:03:23]} 31. Rh7 {[%emt 0:00:12]} Qc6 {[%emt 0:09:50]} 32. e4 {[%emt 0:03:06]} Nd6 {[%emt 0:01:14]} 33. exd5 {[%emt 0:02:41]} Qxd5 {[%emt 0:00:51]} 34. Nc3 {[%emt 0:01:06]} Qf5 {[%emt 0:01:55]} 35. Rg7 {[%emt 0:01:50]} Nb6 {[%emt 0:02:28]} 36. Qe3 {[%emt 0:01:20]} Rc8 {[%emt 0:05:11]} 37. Nfe4 {[%emt 0:01:27]} Ne8 {[%emt 0:01:46]} 38. Rg8 {[%emt 0:01:51]} Qh7 {[%emt 0:02:59]} 39. Rxe8 {[%emt 0:04:16]} Rxe8 {[%emt 0:01:49]} 40. Nxf6 {[%emt 0:00:05]} Qh1+ {[%emt 0:02:08]} 41. Kb2 {[%emt 0:30:02]} Rc8 {[%emt 0:34:28]} 42. Qxe6 {[%emt 0:02:54]} Qc6 {[%emt 0:00:00]} 43. f5 {[%emt 0:00:00]} Rf8 {[%emt 0:00:00]} 44. Nce4 {[%emt 0:00:00]} Qc7 {[%emt 0:00:00]} 45. Ne8 {[%emt 0:00:00]} Qf4 {[%emt 0:00:00]} 46. N8d6 {[%emt 0:00:00]} Nc8 {[%emt 0:00:00]} 47. Nxc8 {[%emt 0:00:00]} Rxc8 {[%emt 0:00:00]} 48. f6 {[%emt 0:00:00]} Qh6 {[%emt 0:01:01]} 49. Qe5+ {[%emt 0:00:00]} Ka8 {[%emt 0:00:33]} 50. Nxc5 {[%emt 0:00:00]} a6 {[%emt 0:01:12]} 51. Qe7 {[%emt 0:00:00]} Qh1 {[%emt 0:01:07]} 52. f7 {[%emt 0:01:02]} Qh8+ {[%emt 0:00:05]} 53. Ka3 {[%emt 0:01:10]} Rb8 {[%emt 0:00:48]} 54. Nd7 {[%emt 0:01:10]} Qh6 {[%emt 0:01:52]} 55. Nxb8 {[%emt 0:01:05]} Qc1+ {[%emt 0:00:04]} 56. Kb4 {[%emt 0:00:32]} Qd2+ {[%emt 0:00:51]} 57. c3 {[%emt 0:01:18]} Qf4+ {[%emt 0:00:05]} 58. d4 {[%emt 0:00:15]} a5+ {[%emt 0:00:17]} 59. Kxa5 {[%emt 0:00:33]} b6+ {[%emt 0:00:31]} 60. Kb4 {[%emt 0:00:26]} b5 {[%emt 0:00:28]} 61. Ka5 {[%emt 0:01:14]} Qf3 {[%emt 0:01:19]} 62. Nc6 {[%emt 0:00:32]} Qxc3+ {[%emt 0:00:06]} 63. Kb6 {[%emt 0:00:15]} 1-0

[Event "Czech Open GM 2020"]
[Site "Pardubice"]
[Date "2020.09.26"]
[Round "7.11"]
[White "Finek, Vaclav"]
[Black "Nemec, Jachym"]
[Result "0-1"]
[ECO "D23"]
[WhiteElo "2344"]
[BlackElo "2150"]
[Annotator "ChessBase"]
[PlyCount "146"]
[EventDate "2020.09.21"]
[EventCountry "CZE"]
[SourceTitle "playchess.com"]
[Source "ChessBase"]
[SourceQuality "1"]
[TimeControl "40/5400+30:1800+30"]

1. d4 {[%emt 0:00:29]} d5 {[%emt 0:00:00]} 2. c4 {[%emt 0:00:09]} c6 {[%emt 0:00:00]} 3. Nf3 {[%emt 0:00:18]} Nf6 {[%emt 0:00:00]} 4. Qc2 {[%emt 0:00:12]} dxc4 {[%emt 0:02:14]} 5. Qxc4 {[%emt 0:00:21]} Bf5 {[%emt 0:00:21]} 6. g3 {[%emt 0:02:05]} Nbd7 {[%emt 0:00:47]} 7. Bg2 {[%emt 0:01:32]} e6 {[%emt 0:00:15]} 8. O-O {[%emt 0:00:10]} Be7 {[%emt 0:00:11]} 9. e3 {[%emt 0:00:15]} O-O {[%emt 0:01:10]} 10. Qe2 {[%emt 0:00:23]} Rc8 {[%emt 0:14:44]} 11. Nc3 {[%emt 0:10:21]} Bg6 {[%emt 0:00:12]} 12. e4 {[%emt 0:04:58]} a6 {[%emt 0:04:00]} 13. Rd1 {[%emt 0:03:40]} Re8 {[%emt 0:03:06]} 14. Bf4 {[%emt 0:06:05]} b5 {[%emt 0:03:03]} 15. a3 {[%emt 0:00:43]} Qb6 {[%emt 0:04:54]} 16. Ne5 {[%emt 0:06:19]} Rcd8 17. Nxg6 {[%emt 0:01:12]} hxg6 18. Be3 {[%emt 0:06:37]} Qb8 {[%emt 0:17:33]} 19. f4 Nb6 {[%emt 0:00:00]} 20. b3 Nfd7 {[%emt 0:00:00]} 21. a4 {[%emt 0:08:55]} b4 {[%emt 0:09:22]} 22. Na2 {[%emt 0:01:04]} a5 {[%emt 0:00:47]} 23. Rac1 {[%emt 0:00:55]} Qb7 {[%emt 0:06:41]} 24. Rc2 {[%emt 0:04:02]} Rc8 {[%emt 0:00:23]} 25. Qf2 {[%emt 0:01:50]} Rc7 {[%emt 0:12:14]} 26. Nc1 {[%emt 0:04:45]} f5 {[%emt 0:02:50]} 27. Nd3 {[%emt 0:06:00]} Nf6 {[%emt 0:00:07]} 28. Ne5 {[%emt 0:01:08]} fxe4 {[%emt 0:01:12]} 29. g4 {[%emt 0:10:01]} Bd6 {[%emt 0:02:34]} 30. g5 {[%emt 0:03:09]} Bxe5 {[%emt 0:00:11]} 31. dxe5 {[%emt 0:01:44]} Ng4 {[%emt 0:00:31]} 32. Qg3 {[%emt 0:00:27]} Nxe3 {[%emt 0:00:39]} 33. Qxe3 {[%emt 0:00:11]} Nd5 {[%emt 0:00:07]} 34. Qxe4 {[%emt 0:00:36]} Rf7 {[%emt 0:04:11]} 35. Rf2 {[%emt 0:04:21]} Qb6 {[%emt 0:05:03]} 36. Qd4 {[%emt 0:05:14]} c5 {[%emt 0:01:27]} 37. Qd2 {[%emt 0:00:59]} Nc3 {[%emt 0:00:08]} 38. Rdf1 {[%emt 0:02:53]} c4 {[%emt 0:00:47]} 39. bxc4 {[%emt 0:01:25]} Rxf4 {[%emt 0:03:54]} 40. Qxf4 {[%emt 0:03:58]} Ne2+ {[%emt 0:00:09]} 41. Kh1 {[%emt 0:30:04]} Nxf4 {[%emt 0:30:04]} 42. Rxf4 {[%emt 0:00:04]} Qd8 {[%emt 0:00:00]} 43. Bc6 {[%emt 0:00:00]} b3 {[%emt 0:00:00]} 44. Bxe8 {[%emt 0:00:00]} Qxe8 {[%emt 0:00:00]} 45. Rb1 {[%emt 0:00:00]} Qc6+ {[%emt 0:00:00]} 46. Kg1 {[%emt 0:00:00]} Qc5+ {[%emt 0:00:00]} 47. Rf2 {[%emt 0:00:00]} Qxc4 {[%emt 0:00:00]} 48. Rfb2 {[%emt 0:00:00]} Qg4+ {[%emt 0:00:00]} 49. Kh1 {[%emt 0:00:00]} Qxa4 {[%emt 0:00:00]} 50. Rxb3 {[%emt 0:00:00]} Qe4+ {[%emt 0:00:00]} 51. Kg1 {[%emt 0:00:00]} Qxe5 {[%emt 0:00:00]} 52. Rb8+ {[%emt 0:00:13]} Kh7 {[%emt 0:00:00]} 53. R8b5 {[%emt 0:00:39]} Qe3+ {[%emt 0:00:00]} 54. Kg2 {[%emt 0:00:43]} Qd2+ {[%emt 0:00:00]} 55. Kh1 {[%emt 0:00:38]} a4 {[%emt 0:00:00]} 56. Ra1 {[%emt 0:03:43]} a3 {[%emt 0:00:00]} 57. Rbb1 {[%emt 0:00:52]} Qd5+ {[%emt 0:00:00]} 58. Kg1 {[%emt 0:00:01]} Qxg5+ {[%emt 0:00:00]} 59. Kh1 {[%emt 0:00:16]} Qd5+ {[%emt 0:00:00]} 60. Kg1 {[%emt 0:00:06]} e5 {[%emt 0:00:00]} 61. Rf1 {[%emt 0:02:01]} e4 {[%emt 0:00:00]} 62. Rfe1 {[%emt 0:01:22]} Qd4+ {[%emt 0:00:00]} 63. Kh1 {[%emt 0:00:49]} e3 {[%emt 0:00:00]} 64. Rac1 {[%emt 0:00:31]} Qe4+ {[%emt 0:00:00]} 65. Kg1 {[%emt 0:00:01]} Qg4+ {[%emt 0:00:00]} 66. Kh1 {[%emt 0:00:31]} Qf3+ {[%emt 0:00:00]} 67. Kg1 {[%emt 0:00:02]} Qf2+ {[%emt 0:00:00]} 68. Kh1 {[%emt 0:00:05]} e2 {[%emt 0:00:00]} 69. Ra1 {[%emt 0:01:18]} a2 {[%emt 0:00:00]} 70. Rac1 {[%emt 0:01:00]} Kh6 {[%emt 0:00:00]} 71. Rg1 {[%emt 0:00:30]} Qf3+ {[%emt 0:00:00]} 72. Rg2 {[%emt 0:00:05]} g5 {[%emt 0:00:00]} 73. Re1 {[%emt 0:00:45]} Kh5 {[%emt 0:00:00]} 0-1

[Event "Czech Open GM 2020"]
[Site "Pardubice"]
[Date "2020.09.26"]
[Round "7.12"]
[White "Rocco, Federico"]
[Black "Seger, Ruediger"]
[Result "1/2-1/2"]
[ECO "B12"]
[WhiteElo "2123"]
[BlackElo "2312"]
[Annotator "ChessBase"]
[PlyCount "79"]
[EventDate "2020.09.21"]
[EventCountry "CZE"]
[SourceTitle "playchess.com"]
[Source "ChessBase"]
[SourceQuality "1"]
[TimeControl "40/5400+30:1800+30"]

1. e4 {[%emt 0:00:00]} c6 {[%emt 0:00:00]} 2. d4 {[%emt 0:00:00]} d5 {[%emt 0:00:00]} 3. e5 {[%emt 0:00:00]} c5 {[%emt 0:00:00]} 4. dxc5 {[%emt 0:00:00]} e6 {[%emt 0:00:06]} 5. Nf3 {[%emt 0:00:11]} Bxc5 {[%emt 0:00:13]} 6. Bd3 {[%emt 0:00:06]} Nc6 {[%emt 0:00:16]} 7. a3 {[%emt 0:00:06]} Nge7 {[%emt 0:00:08]} 8. O-O {[%emt 0:01:18]} Ng6 {[%emt 0:00:42]} 9. b4 {[%emt 0:00:26]} Bb6 {[%emt 0:00:07]} 10. Bb2 {[%emt 0:02:26]} O-O {[%emt 0:00:23]} 11. c4 {[%emt 0:01:58]} dxc4 {[%emt 0:06:07]} 12. Bxc4 {[%emt 0:01:03]} Qxd1 {[%emt 0:00:05]} 13. Rxd1 {[%emt 0:00:11]} Bc7 {[%emt 0:00:16]} 14. Re1 {[%emt 0:01:16]} Rd8 {[%emt 0:00:51]} 15. b5 {[%emt 0:13:20]} Ncxe5 {[%emt 0:35:16]} 16. Nxe5 {[%emt 0:23:42]} Nxe5 {[%emt 0:00:11]} 17. Rxe5 {[%emt 0:00:55]} Bxe5 {[%emt 0:00:15]} 18. Bxe5 {[%emt 0:00:07]} Rd1+ {[%emt 0:00:07]} 19. Bf1 {[%emt 0:00:03]} Bd7 {[%emt 0:00:36]} 20. a4 {[%emt 0:00:29]} a6 {[%emt 0:00:38]} 21. b6 {[%emt 0:05:25]} Rc8 {[%emt 0:02:07]} 22. Bc7 {[%emt 0:03:04]} e5 {[%emt 0:00:27]} 23. f3 {[%emt 0:19:23]} Bf5 {[%emt 0:15:51]} 24. Kf2 {[%emt 0:00:10]} h5 {[%emt 0:10:54]} 25. g4 {[%emt 0:05:41]} hxg4 {[%emt 0:01:32]} 26. fxg4 {[%emt 0:00:05]} Rxb1 {[%emt 0:00:51]} 27. Rxb1 {[%emt 0:01:45]} Bxb1 {[%emt 0:00:11]} 28. Ke3 {[%emt 0:03:29]} Kf8 {[%emt 0:10:52]} 29. Bc4 {[%emt 0:01:52]} Ke7 {[%emt 0:06:34]} 30. Bd5 {[%emt 0:00:22]} Rxc7 {[%emt 0:00:53]} 31. bxc7 {[%emt 0:00:05]} Kd7 {[%emt 0:00:05]} 32. Bxb7 {[%emt 0:00:08]} Kxc7 {[%emt 0:00:09]} 33. Bxa6 {[%emt 0:00:04]} g5 {[%emt 0:00:34]} 34. Bd3 {[%emt 0:02:33]} Bxd3 {[%emt 0:02:11]} 35. Kxd3 {[%emt 0:00:18]} Kb6 {[%emt 0:00:10]} 36. Kc4 {[%emt 0:02:12]} Ka5 {[%emt 0:00:19]} 37. Kb3 {[%emt 0:00:07]} f6 {[%emt 0:00:06]} 38. Ka3 {[%emt 0:02:51]} Kb6 {[%emt 0:01:08]} 39. Kb4 {[%emt 0:00:12]} Kc6 {[%emt 0:02:02]} 40. Kc4 {[%emt 0:00:09]} 1/2-1/2

[Event "Czech Open GM 2020"]
[Site "Pardubice"]
[Date "2020.09.26"]
[Round "7.13"]
[White "Kueppers, Timo"]
[Black "Trybus, Daniel"]
[Result "1-0"]
[ECO "E61"]
[WhiteElo "2277"]
[BlackElo "1997"]
[Annotator "ChessBase"]
[PlyCount "61"]
[EventDate "2020.09.21"]
[EventCountry "CZE"]
[SourceTitle "playchess.com"]
[Source "ChessBase"]
[SourceQuality "1"]
[TimeControl "40/5400+30:1800+30"]

1. Nf3 {[%emt 0:04:20]} Nf6 {[%emt 0:00:00]} 2. c4 {[%emt 0:00:10]} g6 {[%emt 0:00:00]} 3. Nc3 {[%emt 0:00:07]} Bg7 {[%emt 0:00:00]} 4. d4 {[%emt 0:00:04]} O-O {[%emt 0:00:00]} 5. Bg5 {[%emt 0:00:03]} d6 {[%emt 0:01:45]} 6. e3 {[%emt 0:00:05]} c5 {[%emt 0:02:11]} 7. d5 {[%emt 0:00:17]} e6 {[%emt 0:02:09]} 8. Nd2 {[%emt 0:00:16]} Qa5 {[%emt 0:02:50]} 9. Be2 {[%emt 0:13:05]} a6 {[%emt 0:07:56]} 10. a4 {[%emt 0:04:01]} e5 {[%emt 0:02:24]} 11. O-O {[%emt 0:01:57]} Nbd7 {[%emt 0:04:13]} 12. f4 {[%emt 0:07:46]} exf4 {[%emt 0:06:37]} 13. exf4 {[%emt 0:00:40]} Re8 {[%emt 0:01:00]} 14. Bd3 {[%emt 0:11:10]} Qb4 {[%emt 0:14:03]} 15. Ra3 {[%emt 0:09:58]} Qa5 {[%emt 0:05:52]} 16. h3 {[%emt 0:01:38]} Nh5 {[%emt 0:04:20]} 17. g4 {[%emt 0:02:06]} Re3 {[%emt 0:04:18]} 18. Nde4 {[%emt 0:11:34]} f6 {[%emt 0:04:47]} 19. gxh5 {[%emt 0:05:34]} fxg5 {[%emt 0:01:46]} 20. hxg6 {[%emt 0:08:57]} hxg6 {[%emt 0:00:24]} 21. Nxg5 {[%emt 0:02:16]} Nf8 {[%emt 0:07:48]} 22. Re1 {[%emt 0:00:23]} Bd4 {[%emt 0:00:46]} 23. Rxe3 {[%emt 0:00:20]} Bxe3+ {[%emt 0:00:42]} 24. Kg2 {[%emt 0:01:48]} Bxf4 {[%emt 0:03:01]} 25. Ne6 {[%emt 0:00:58]} Bxe6 {[%emt 0:07:50]} 26. dxe6 {[%emt 0:00:06]} Re8 {[%emt 0:03:04]} 27. Qg4 {[%emt 0:07:40]} g5 {[%emt 0:00:40]} 28. Rb3 {[%emt 0:00:58]} Re7 {[%emt 0:05:25]} 29. Bf5 {[%emt 0:02:23]} Rg7 {[%emt 0:02:08]} 30. Qe2 {[%emt 0:00:26]} Ng6 {[%emt 0:02:53]} 31. Bxg6 {[%emt 0:00:21]} 1-0

[Event "Czech Open GM 2020"]
[Site "Pardubice"]
[Date "2020.09.26"]
[Round "7.14"]
[White "Nemcova, Karin"]
[Black "Haba, Petr"]
[Result "0-1"]
[ECO "C10"]
[WhiteElo "1983"]
[BlackElo "2461"]
[Annotator "ChessBase"]
[PlyCount "84"]
[EventDate "2020.09.21"]
[EventCountry "CZE"]
[SourceTitle "playchess.com"]
[Source "ChessBase"]
[SourceQuality "1"]
[TimeControl "40/5400+30:1800+30"]

1. e4 {[%emt 0:00:00]} e6 {[%emt 0:00:07]} 2. d4 {[%emt 0:00:00]} d5 {[%emt 0:00:05]} 3. Nc3 {[%emt 0:00:00]} dxe4 {[%emt 0:00:06]} 4. Nxe4 {[%emt 0:00:00]} Nd7 {[%emt 0:00:04]} 5. g3 {[%emt 0:00:17]} b6 {[%emt 0:02:14]} 6. Bg2 {[%emt 0:00:25]} Rb8 {[%emt 0:00:05]} 7. Ne2 {[%emt 0:01:21]} Bb7 {[%emt 0:00:57]} 8. O-O {[%emt 0:00:28]} Ngf6 {[%emt 0:01:50]} 9. Nxf6+ {[%emt 0:03:06]} Nxf6 {[%emt 0:01:07]} 10. c4 {[%emt 0:05:27]} Bxg2 {[%emt 0:03:06]} 11. Kxg2 {[%emt 0:00:00]} Qd7 {[%emt 0:06:01]} 12. b3 {[%emt 0:04:39]} Be7 {[%emt 0:00:00]} 13. Bb2 {[%emt 0:02:04]} O-O {[%emt 0:00:00]} 14. Nf4 {[%emt 0:00:45]} b5 {[%emt 0:06:55]} 15. Qe2 {[%emt 0:06:32]} bxc4 {[%emt 0:07:23]} 16. Qxc4 {[%emt 0:03:39]} Bd6 {[%emt 0:03:54]} 17. Nd3 {[%emt 0:12:03]} Nd5 {[%emt 0:01:38]} 18. Rac1 {[%emt 0:02:11]} f5 {[%emt 0:04:14]} 19. Qc6 {[%emt 0:11:32]} Qf7 {[%emt 0:01:45]} 20. f4 {[%emt 0:05:00]} Rb6 {[%emt 0:07:24]} 21. Qa4 {[%emt 0:00:21]} Ne3+ {[%emt 0:00:18]} 22. Kg1 {[%emt 0:01:06]} Nxf1 {[%emt 0:08:36]} 23. Rxf1 {[%emt 0:00:52]} Rbb8 {[%emt 0:02:20]} 24. Qc4 {[%emt 0:01:17]} h6 {[%emt 0:03:20]} 25. Re1 {[%emt 0:02:02]} Rfe8 {[%emt 0:00:22]} 26. Ne5 {[%emt 0:10:38]} Bxe5 {[%emt 0:01:04]} 27. Rxe5 {[%emt 0:00:09]} Kh7 {[%emt 0:09:48]} 28. Rc5 {[%emt 0:01:59]} Re7 {[%emt 0:01:38]} 29. Ba3 {[%emt 0:00:51]} Rd7 {[%emt 0:01:47]} 30. Rc6 {[%emt 0:05:03]} Rb6 {[%emt 0:01:16]} 31. Rc5 {[%emt 0:02:52]} Rbd6 {[%emt 0:00:19]} 32. Bb2 {[%emt 0:00:11]} Qh5 {[%emt 0:00:52]} 33. Qf1 {[%emt 0:02:28]} Rxd4 {[%emt 0:03:47]} 34. Bxd4 {[%emt 0:01:01]} Rxd4 {[%emt 0:00:05]} 35. Qf2 {[%emt 0:01:32]} Rd1+ {[%emt 0:09:26]} 36. Kg2 {[%emt 0:00:18]} Qf7 {[%emt 0:00:47]} 37. Qc2 {[%emt 0:06:14]} Qd7 {[%emt 0:04:55]} 38. Kh3 {[%emt 0:01:37]} Rd2 {[%emt 0:02:13]} 39. Qc3 {[%emt 0:00:17]} c6 {[%emt 0:00:50]} 40. Ra5 {[%emt 0:03:29]} Re2 {[%emt 0:03:00]} 41. Re5 {[%emt 0:35:59]} Rxa2 {[%emt 0:30:22]} 42. Qe3 {[%emt 0:00:00]} Qd1 {[%emt 0:00:00]} 0-1